[Event "*** Titled Tuesday Blitz"]
[Site "Chess.com"]
[Date "2019.02.05"]
[Round "4"]
[White "Maikrosoft63"]
[Black "tioloko"]
[Result "0-1"]
[WhiteElo "2558"]
[BlackElo "2574"]
[TimeControl "180+2"]
[EndTime "13:49:51 PST"]
[Termination "tioloko won on time"]

1. e4 {[%clk 0:03:01.9]} 1... c5 {[%clk 0:02:57.8]} 2. Nf3 {[%clk 0:03:02.8]}
2... d6 {[%clk 0:02:58.2]} 3. d4 {[%clk 0:03:04.1]} 3... cxd4 {[%clk 0:03:00.1]}
4. Nxd4 {[%clk 0:03:06]} 4... Nc6 {[%clk 0:03:01.3]} 5. Nc3 {[%clk 0:03:04]}
5... Nf6 {[%clk 0:03:02.6]} 6. Bg5 {[%clk 0:03:04.6]} 6... e6 {[%clk 0:03:02.8]}
7. Qd2 {[%clk 0:03:05.5]} 7... a6 {[%clk 0:03:02.5]} 8. O-O-O {[%clk 0:03:06.2]}
8... Bd7 {[%clk 0:03:03.5]} 9. f4 {[%clk 0:03:06]} 9... Be7 {[%clk 0:03:01]} 10.
Kb1 {[%clk 0:02:57.8]} 10... b5 {[%clk 0:03:00]} 11. Nxc6 {[%clk 0:02:34.8]}
11... Bxc6 {[%clk 0:02:57.5]} 12. Qe1 {[%clk 0:02:34.5]} 12... Qb6 {[%clk
0:02:57.1]} 13. Bxf6 {[%clk 0:02:34.1]} 13... Bxf6 {[%clk 0:02:55.7]} 14. Nd5
{[%clk 0:02:33.6]} 14... exd5 {[%clk 0:02:48.7]} 15. exd5+ {[%clk 0:02:35.5]}
15... Kf8 {[%clk 0:02:49.4]} 16. dxc6 {[%clk 0:02:35.4]} 16... Qxc6 {[%clk
0:02:51.3]} 17. Bd3 {[%clk 0:02:21.5]} 17... Re8 {[%clk 0:02:51.4]} 18. Qf2
{[%clk 0:01:37.7]} 18... g6 {[%clk 0:02:50.9]} 19. g4 {[%clk 0:01:37.7]} 19...
Qc5 {[%clk 0:02:50.3]} 20. Qxc5 {[%clk 0:00:55.4]} 20... dxc5 {[%clk 0:02:52.2]}
21. c3 {[%clk 0:00:54.6]} 21... g5 {[%clk 0:02:49.6]} 22. fxg5 {[%clk
0:00:51.1]} 22... Bxg5 {[%clk 0:02:49.7]} 23. Bf5 {[%clk 0:00:52.5]} 23... Kg7
{[%clk 0:02:42.9]} 24. Rd7 {[%clk 0:00:51.9]} 24... h5 {[%clk 0:02:42.5]} 25. h4
{[%clk 0:00:49]} 25... hxg4 {[%clk 0:02:34.2]} 26. Rg1 {[%clk 0:00:43.6]} 26...
Rxh4 {[%clk 0:02:33.3]} 27. Bxg4 {[%clk 0:00:44.9]} 27... c4 {[%clk 0:02:31.6]}
28. Bf3 {[%clk 0:00:26]} 28... Kg6 {[%clk 0:02:22.9]} 29. Bd5 {[%clk 0:00:23.9]}
29... Re5 {[%clk 0:02:10.7]} 30. Bxf7+ {[%clk 0:00:23.9]} 30... Kf6 {[%clk
0:02:10.7]} 31. Bd5 {[%clk 0:00:23.4]} 31... Re2 {[%clk 0:01:59.2]} 32. Bf3
{[%clk 0:00:21]} 32... Rf2 {[%clk 0:01:57.4]} 33. Bd1 {[%clk 0:00:20.4]} 33...
Rhh2 {[%clk 0:01:56.1]} 34. Rd6+ {[%clk 0:00:14.6]} 34... Ke7 {[%clk 0:01:55.7]}
35. Rxa6 {[%clk 0:00:16]} 35... Rxb2+ {[%clk 0:01:55.4]} 36. Ka1 {[%clk
0:00:17.6]} 36... Bf6 {[%clk 0:01:47.3]} 37. Re1+ {[%clk 0:00:18.6]} 37... Kf7
{[%clk 0:01:44.8]} 38. Bh5+ {[%clk 0:00:19.9]} 38... Kg7 {[%clk 0:01:40.8]} 39.
Rg1+ {[%clk 0:00:20.9]} 39... Rbg2 {[%clk 0:01:40.6]} 40. Rxg2+ {[%clk
0:00:12.8]} 40... Rxg2 {[%clk 0:01:42.5]} 41. Be8 {[%clk 0:00:10.7]} 41... Bxc3+
{[%clk 0:01:27.7]} 42. Kb1 {[%clk 0:00:11.6]} 42... b4 {[%clk 0:01:26.9]} 43.
Bb5 {[%clk 0:00:05.2]} 43... b3 {[%clk 0:01:22.3]} 44. axb3 {[%clk 0:00:06]}
44... cxb3 {[%clk 0:01:22.9]} 45. Ra7+ {[%clk 0:00:06.9]} 45... Kf6 {[%clk
0:01:19.7]} 46. Ra6+ {[%clk 0:00:07.9]} 46... Ke5 {[%clk 0:01:20.4]} 0-1

[Event "*** Titled Tuesday Blitz"]
[Site "Chess.com"]
[Date "2019.02.05"]
[Round "4"]
[White "AkibaRubi"]
[Black "HanSchut"]
[Result "0-1"]
[WhiteElo "2565"]
[BlackElo "2307"]
[TimeControl "180+2"]
[EndTime "13:49:51 PST"]
[Termination "HanSchut won by resignation"]

1. d4 {[%clk 0:03:01.9]} 1... Nf6 {[%clk 0:03:00]} 2. c4 {[%clk 0:02:59.9]} 2...
g6 {[%clk 0:03:01.4]} 3. Nc3 {[%clk 0:03:00.2]} 3... d5 {[%clk 0:03:02.8]} 4.
cxd5 {[%clk 0:02:57.9]} 4... Nxd5 {[%clk 0:03:04.7]} 5. e4 {[%clk 0:02:59.1]}
5... Nxc3 {[%clk 0:03:06.2]} 6. bxc3 {[%clk 0:03:01]} 6... Bg7 {[%clk
0:03:07.4]} 7. Bc4 {[%clk 0:02:59.1]} 7... c5 {[%clk 0:03:08.2]} 8. Ne2 {[%clk
0:02:58.8]} 8... Nc6 {[%clk 0:03:07.5]} 9. Be3 {[%clk 0:02:55.5]} 9... O-O
{[%clk 0:03:05.4]} 10. O-O {[%clk 0:02:55.9]} 10... Bg4 {[%clk 0:03:05.7]} 11.
f3 {[%clk 0:02:56.6]} 11... Na5 {[%clk 0:03:04.6]} 12. Bb3 {[%clk 0:02:21.2]}
12... cxd4 {[%clk 0:02:52.1]} 13. cxd4 {[%clk 0:02:19.7]} 13... Nxb3 {[%clk
0:02:53.6]} 14. Qxb3 {[%clk 0:02:05.3]} 14... Bd7 {[%clk 0:02:53.9]} 15. Rac1
{[%clk 0:02:05.5]} 15... a6 {[%clk 0:02:54.1]} 16. Rfd1 {[%clk 0:02:02.7]} 16...
b5 {[%clk 0:02:51.2]} 17. Nf4 {[%clk 0:01:54]} 17... Rc8 {[%clk 0:02:31.8]} 18.
Nd3 {[%clk 0:01:48.1]} 18... Rxc1 {[%clk 0:02:03.7]} 19. Rxc1 {[%clk 0:01:48.4]}
19... Bc8 {[%clk 0:02:03.8]} 20. Nc5 {[%clk 0:01:44.2]} 20... Bxd4 {[%clk
0:02:01.4]} 21. Bxd4 {[%clk 0:01:45.1]} 21... Qxd4+ {[%clk 0:02:01.8]} 22. Kh1
{[%clk 0:01:46.2]} 22... Rd8 {[%clk 0:01:58.7]} 23. h3 {[%clk 0:01:30.3]} 23...
h5 {[%clk 0:01:41.2]} 24. Qc2 {[%clk 0:01:15.1]} 24... Qd2 {[%clk 0:01:39.9]}
25. Nb3 {[%clk 0:01:13.3]} 25... Qxc2 {[%clk 0:01:35.1]} 26. Rxc2 {[%clk
0:01:15.2]} 26... Be6 {[%clk 0:01:35.3]} 27. Rb2 {[%clk 0:00:52.6]} 27... Bxb3
{[%clk 0:01:21.3]} 28. axb3 {[%clk 0:00:37.7]} 28... Rd1+ {[%clk 0:01:05.4]} 29.
Kh2 {[%clk 0:00:38.5]} 29... Ra1 {[%clk 0:01:04.9]} 30. Kg3 {[%clk 0:00:34.7]}
30... a5 {[%clk 0:01:04.6]} 31. Kf4 {[%clk 0:00:22.7]} 31... a4 {[%clk
0:01:03.7]} 32. bxa4 {[%clk 0:00:23.5]} 32... bxa4 {[%clk 0:01:05.6]} 33. Rb8+
{[%clk 0:00:24.4]} 33... Kg7 {[%clk 0:01:06.5]} 34. Ra8 {[%clk 0:00:25.7]} 34...
a3 {[%clk 0:01:06.7]} 35. g3 {[%clk 0:00:24.8]} 35... Kf6 {[%clk 0:01:01.1]} 36.
Ra5 {[%clk 0:00:20.2]} 36... a2 {[%clk 0:00:48.8]} 37. h4 {[%clk 0:00:21.3]}
37... Ke6 {[%clk 0:00:48.7]} 38. Ra6+ {[%clk 0:00:17.2]} 38... Kd7 {[%clk
0:00:49.5]} 39. Ra7+ {[%clk 0:00:18.4]} 39... Kd6 {[%clk 0:00:46.4]} 40. Ra6+
{[%clk 0:00:19.4]} 40... Kc5 {[%clk 0:00:45.7]} 41. Ra7 {[%clk 0:00:20]} 41...
f6 {[%clk 0:00:43.3]} 42. Rxe7 {[%clk 0:00:20.4]} 42... Rg1 {[%clk 0:00:40.5]}
43. Rc7+ {[%clk 0:00:20.6]} 43... Kd6 {[%clk 0:00:41.1]} 44. Ra7 {[%clk
0:00:21.5]} 0-1

[Event "*** Titled Tuesday Blitz"]
[Site "Chess.com"]
[Date "2019.02.05"]
[Round "4"]
[White "NoGalloNoParty"]
[Black "Tiqr777"]
[Result "1-0"]
[WhiteElo "2335"]
[BlackElo "2575"]
[TimeControl "180+2"]
[EndTime "13:49:53 PST"]
[Termination "NoGalloNoParty won by resignation"]

1. d4 {[%clk 0:03:00.7]} 1... Nf6 {[%clk 0:02:59.6]} 2. Nf3 {[%clk 0:03:02]}
2... e6 {[%clk 0:02:59.8]} 3. c4 {[%clk 0:03:03.1]} 3... d5 {[%clk 0:02:59.3]}
4. g3 {[%clk 0:03:04.2]} 4... Be7 {[%clk 0:02:59.2]} 5. Bg2 {[%clk 0:03:05]}
5... O-O {[%clk 0:03:00.4]} 6. O-O {[%clk 0:03:06.2]} 6... Nbd7 {[%clk
0:03:01.3]} 7. Nbd2 {[%clk 0:03:06.3]} 7... a6 {[%clk 0:02:58.2]} 8. Qc2 {[%clk
0:03:07.2]} 8... c5 {[%clk 0:02:51.5]} 9. cxd5 {[%clk 0:03:05.1]} 9... Nxd5
{[%clk 0:02:47.7]} 10. Rd1 {[%clk 0:02:58.9]} 10... Qc7 {[%clk 0:02:27.9]} 11.
Ne4 {[%clk 0:02:35.9]} 11... cxd4 {[%clk 0:02:21.9]} 12. Qxc7 {[%clk 0:02:35.4]}
12... Nxc7 {[%clk 0:02:23.5]} 13. Nxd4 {[%clk 0:02:36.1]} 13... Nf6 {[%clk
0:02:17.8]} 14. Bg5 {[%clk 0:02:33.3]} 14... Ncd5 {[%clk 0:02:10]} 15. Rac1
{[%clk 0:02:31.7]} 15... Rb8 {[%clk 0:01:58.2]} 16. Nxf6+ {[%clk 0:02:22.6]}
16... Bxf6 {[%clk 0:01:52]} 17. Bxf6 {[%clk 0:02:04.5]} 17... Nxf6 {[%clk
0:01:53.1]} 18. Nb3 {[%clk 0:01:33.2]} 18... b6 {[%clk 0:01:38.9]} 19. Rc7
{[%clk 0:01:22.8]} 19... a5 {[%clk 0:01:39.9]} 20. Nd4 {[%clk 0:01:08.5]} 20...
Bd7 {[%clk 0:01:40.8]} 21. Nc6 {[%clk 0:01:08]} 21... Bxc6 {[%clk 0:01:41]} 22.
Bxc6 {[%clk 0:01:08.8]} 22... Rbc8 {[%clk 0:01:30.4]} 23. Rxc8 {[%clk
0:01:01.1]} 23... Rxc8 {[%clk 0:01:31.9]} 24. Ba4 {[%clk 0:01:00.5]} 24... Kf8
{[%clk 0:01:22.6]} 25. Rd6 {[%clk 0:00:59.3]} 25... Rb8 {[%clk 0:01:18.8]} 26.
Bb5 {[%clk 0:00:59.8]} 26... Ke7 {[%clk 0:01:15.9]} 27. Rc6 {[%clk 0:01:00.2]}
27... Ne8 {[%clk 0:01:16.7]} 28. f4 {[%clk 0:00:54.7]} 28... f5 {[%clk
0:01:13.8]} 29. Kf2 {[%clk 0:00:54.3]} 29... Nd6 {[%clk 0:01:13.4]} 30. Rc7+
{[%clk 0:00:49.7]} 30... Kf6 {[%clk 0:01:13.1]} 31. Bd3 {[%clk 0:00:48.9]} 31...
Rb7 {[%clk 0:01:08.4]} 32. Rxb7 {[%clk 0:00:47.1]} 32... Nxb7 {[%clk 0:01:09.8]}
33. e4 {[%clk 0:00:47.2]} 33... fxe4 {[%clk 0:01:09.2]} 34. Bxe4 {[%clk
0:00:48.2]} 34... Nd6 {[%clk 0:01:10.5]} 35. Bd3 {[%clk 0:00:47.3]} 35... e5
{[%clk 0:01:11.7]} 36. Ke3 {[%clk 0:00:48]} 36... g5 {[%clk 0:01:12.4]} 37.
fxg5+ {[%clk 0:00:47.4]} 37... Kxg5 {[%clk 0:01:13.6]} 38. Bxh7 {[%clk 0:00:47]}
38... Kf6 {[%clk 0:01:08.5]} 39. Bd3 {[%clk 0:00:46.9]} 39... b5 {[%clk
0:01:08.7]} 40. h4 {[%clk 0:00:46.2]} 40... b4 {[%clk 0:01:09.8]} 41. a3 {[%clk
0:00:41.7]} 41... bxa3 {[%clk 0:00:55.9]} 42. bxa3 {[%clk 0:00:43.6]} 42... e4
{[%clk 0:00:52.4]} 43. Bxe4 {[%clk 0:00:42.6]} 43... Nc4+ {[%clk 0:00:53.7]} 44.
Kf4 {[%clk 0:00:41.2]} 44... Nxa3 {[%clk 0:00:54.3]} 45. Bd3 {[%clk 0:00:42.2]}
45... a4 {[%clk 0:00:51]} 46. g4 {[%clk 0:00:41.8]} 46... Ke6 {[%clk 0:00:51.8]}
47. h5 {[%clk 0:00:42.5]} 1-0

[Event "*** Titled Tuesday Blitz"]
[Site "Chess.com"]
[Date "2019.02.05"]
[Round "4"]
[White "Storne89"]
[Black "OparinGrigoriy"]
[Result "0-1"]
[WhiteElo "2579"]
[BlackElo "2917"]
[TimeControl "180+2"]
[EndTime "13:49:54 PST"]
[Termination "OparinGrigoriy won by resignation"]

1. d4 {[%clk 0:03:01.9]} 1... Nf6 {[%clk 0:02:57.6]} 2. Nf3 {[%clk 0:03:02.7]}
2... e6 {[%clk 0:02:59.5]} 3. Bf4 {[%clk 0:03:00.7]} 3... b6 {[%clk 0:02:59.8]}
4. e3 {[%clk 0:02:56.5]} 4... Bb7 {[%clk 0:03:01.7]} 5. Be2 {[%clk 0:02:55.1]}
5... d5 {[%clk 0:03:02.3]} 6. Nbd2 {[%clk 0:02:51.4]} 6... Bd6 {[%clk
0:03:03.7]} 7. Bg3 {[%clk 0:02:50.8]} 7... O-O {[%clk 0:03:04.7]} 8. O-O {[%clk
0:02:51.8]} 8... c5 {[%clk 0:03:06.3]} 9. c3 {[%clk 0:02:52.5]} 9... Nc6 {[%clk
0:03:07.9]} 10. a3 {[%clk 0:02:51.9]} 10... a5 {[%clk 0:03:07]} 11. Ne5 {[%clk
0:02:51.6]} 11... Qc7 {[%clk 0:03:07.7]} 12. f4 {[%clk 0:02:52.2]} 12... Ne7
{[%clk 0:03:08.6]} 13. Bh4 {[%clk 0:02:47.1]} 13... Nf5 {[%clk 0:03:06.2]} 14.
Bf2 {[%clk 0:02:43.5]} 14... Be7 {[%clk 0:03:04.5]} 15. g4 {[%clk 0:02:37.8]}
15... Nd6 {[%clk 0:03:05.9]} 16. Bh4 {[%clk 0:02:17.6]} 16... Nfe4 {[%clk
0:02:44.1]} 17. Bxe7 {[%clk 0:02:16.2]} 17... Qxe7 {[%clk 0:02:46]} 18. Nxe4
{[%clk 0:02:11.9]} 18... Nxe4 {[%clk 0:02:47.9]} 19. Bd3 {[%clk 0:02:01.7]}
19... f6 {[%clk 0:02:48.7]} 20. Nf3 {[%clk 0:02:02.5]} 20... Ba6 {[%clk
0:02:47.5]} 21. Bxa6 {[%clk 0:02:01.5]} 21... Rxa6 {[%clk 0:02:49.4]} 22. Nd2
{[%clk 0:02:01.7]} 22... Nd6 {[%clk 0:02:47.1]} 23. Qf3 {[%clk 0:01:57]} 23...
Raa8 {[%clk 0:02:47]} 24. f5 {[%clk 0:01:51.3]} 24... Rae8 {[%clk 0:02:40.9]}
25. Rae1 {[%clk 0:01:50.7]} 25... Kh8 {[%clk 0:02:41.7]} 26. e4 {[%clk
0:01:51.3]} 26... exf5 {[%clk 0:02:37.7]} 27. exf5 {[%clk 0:01:43.8]} 27... Qxe1
{[%clk 0:02:38.6]} 28. Rxe1 {[%clk 0:01:45]} 28... Rxe1+ {[%clk 0:02:40.5]} 29.
Kf2 {[%clk 0:01:46.6]} 29... Rfe8 {[%clk 0:02:41.8]} 30. Qxd5 {[%clk 0:01:43.3]}
30... R1e2+ {[%clk 0:02:40.3]} 31. Kg3 {[%clk 0:01:38.8]} 31... Rxd2 {[%clk
0:02:33.5]} 32. Qxd6 {[%clk 0:01:38.7]} 32... cxd4 {[%clk 0:02:34.6]} 33. cxd4
{[%clk 0:01:34.2]} 33... h5 {[%clk 0:02:27.4]} 34. gxh5 {[%clk 0:01:27.5]} 34...
Re3+ {[%clk 0:02:21.3]} 35. Kf4 {[%clk 0:01:24.7]} 35... Rh3 {[%clk 0:02:22.7]}
36. Qxb6 {[%clk 0:00:59.8]} 36... Rh4+ {[%clk 0:02:18.8]} 37. Ke3 {[%clk
0:01:01.1]} 37... Rdxh2 {[%clk 0:02:18]} 38. Qb8+ {[%clk 0:00:56.1]} 38... Kh7
{[%clk 0:02:18.6]} 39. Qe8 {[%clk 0:00:55.3]} 39... R4h3+ {[%clk 0:02:02.2]} 40.
Kf4 {[%clk 0:00:52.5]} 40... Rg2 {[%clk 0:02:02.3]} 41. d5 {[%clk 0:00:38.4]}
41... Rd3 {[%clk 0:02:03.1]} 42. h6 {[%clk 0:00:36.2]} 42... Rf2+ {[%clk
0:01:24.1]} 43. Kg4 {[%clk 0:00:33.6]} 43... Rg2+ {[%clk 0:01:10.9]} 44. Kf4
{[%clk 0:00:34.5]} 44... Rgg3 {[%clk 0:00:52.7]} 45. hxg7 {[%clk 0:00:25.1]}
45... Rdf3+ {[%clk 0:00:52.2]} 46. Ke4 {[%clk 0:00:22.3]} 46... Re3+ {[%clk
0:00:53.7]} 47. Kf4 {[%clk 0:00:22.2]} 47... Rxe8 {[%clk 0:00:55.6]} 0-1

[Event "*** Titled Tuesday Blitz"]
[Site "Chess.com"]
[Date "2019.02.05"]
[Round "4"]
[White "joppie2"]
[Black "Al_Shima"]
[Result "1-0"]
[WhiteElo "2751"]
[BlackElo "2505"]
[TimeControl "180+2"]
[EndTime "13:49:56 PST"]
[Termination "joppie2 won by resignation"]

1. c4 {[%clk 0:03:01.8]} 1... Nf6 {[%clk 0:03:00.2]} 2. Nc3 {[%clk 0:03:02.3]}
2... e6 {[%clk 0:02:58.5]} 3. d4 {[%clk 0:03:01.5]} 3... d5 {[%clk 0:02:53.6]}
4. cxd5 {[%clk 0:03:01.8]} 4... exd5 {[%clk 0:02:54.4]} 5. Bg5 {[%clk
0:03:03.3]} 5... Be7 {[%clk 0:02:55.2]} 6. e3 {[%clk 0:03:03]} 6... c6 {[%clk
0:02:54.3]} 7. Bd3 {[%clk 0:03:01.6]} 7... Nbd7 {[%clk 0:02:50.9]} 8. Nge2
{[%clk 0:02:59.6]} 8... O-O {[%clk 0:02:51.5]} 9. Qc2 {[%clk 0:02:59.7]} 9...
Re8 {[%clk 0:02:51.2]} 10. O-O {[%clk 0:02:59.5]} 10... Nf8 {[%clk 0:02:51.7]}
11. f3 {[%clk 0:02:49.6]} 11... g6 {[%clk 0:02:47.6]} 12. Rae1 {[%clk
0:02:35.7]} 12... Ne6 {[%clk 0:02:47.6]} 13. Bh4 {[%clk 0:02:37]} 13... Ng7
{[%clk 0:02:48.1]} 14. Bf2 {[%clk 0:02:37.3]} 14... Bf5 {[%clk 0:02:40.5]} 15.
e4 {[%clk 0:02:36.6]} 15... Be6 {[%clk 0:02:29.5]} 16. e5 {[%clk 0:02:30.7]}
16... Nd7 {[%clk 0:02:24.8]} 17. Ng3 {[%clk 0:02:20.9]} 17... Rc8 {[%clk
0:02:17.3]} 18. f4 {[%clk 0:02:20.9]} 18... c5 {[%clk 0:02:14.3]} 19. f5 {[%clk
0:02:19.9]} 19... gxf5 {[%clk 0:02:13.7]} 20. Nxf5 {[%clk 0:02:17.2]} 20... Nxf5
{[%clk 0:02:10.5]} 21. Bxf5 {[%clk 0:02:15]} 21... Nf8 {[%clk 0:02:10.3]} 22.
Be3 {[%clk 0:01:55.9]} 22... Qd7 {[%clk 0:02:09.8]} 23. Rf3 {[%clk 0:01:49.2]}
23... cxd4 {[%clk 0:02:06.2]} 24. Bxd4 {[%clk 0:01:49.7]} 24... Bc5 {[%clk
0:02:06.4]} 25. Bxc5 {[%clk 0:01:43.4]} 25... Rxc5 {[%clk 0:02:08.3]} 26. Qf2
{[%clk 0:01:44.8]} 26... Rc4 {[%clk 0:02:03.4]} 27. Rf1 {[%clk 0:01:42.4]} 27...
Re7 {[%clk 0:01:38]} 28. Rg3+ {[%clk 0:01:37.4]} 28... Ng6 {[%clk 0:01:37.7]}
29. Bxg6 {[%clk 0:01:38.2]} 29... hxg6 {[%clk 0:01:34.8]} 30. Qf6 {[%clk
0:01:27.7]} 30... Rg4 {[%clk 0:01:32]} 31. Rxg4 {[%clk 0:00:46.3]} 31... Bxg4
{[%clk 0:01:32.4]} 32. h3 {[%clk 0:00:48.2]} 32... Re6 {[%clk 0:01:02.3]} 33.
Qg5 {[%clk 0:00:45.4]} 33... d4 {[%clk 0:00:40.2]} 34. Ne4 {[%clk 0:00:44]}
34... Be2 {[%clk 0:00:22.7]} 35. Nf6+ {[%clk 0:00:45.1]} 35... Rxf6 {[%clk
0:00:23.4]} 36. Rxf6 {[%clk 0:00:47]} 36... d3 {[%clk 0:00:21.9]} 37. Rd6 {[%clk
0:00:48.4]} 37... Qb5 {[%clk 0:00:20.9]} 38. Rd8+ {[%clk 0:00:48.6]} 38... Kh7
{[%clk 0:00:21.3]} 39. Qh4+ {[%clk 0:00:35.6]} 39... Bh5 {[%clk 0:00:20.4]} 40.
Qf6 {[%clk 0:00:37.1]} 40... Qb6+ {[%clk 0:00:14.4]} 41. Qxb6 {[%clk 0:00:36.5]}
41... axb6 {[%clk 0:00:16.3]} 42. Rxd3 {[%clk 0:00:38.4]} 42... Be2 {[%clk
0:00:14.9]} 43. Rd7 {[%clk 0:00:38.9]} 1-0

[Event "*** Titled Tuesday Blitz"]
[Site "Chess.com"]
[Date "2019.02.05"]
[Round "4"]
[White "flomarechot"]
[Black "Iyael"]
[Result "1-0"]
[WhiteElo "2061"]
[BlackElo "1995"]
[TimeControl "180+2"]
[EndTime "13:50:01 PST"]
[Termination "flomarechot won by resignation"]

1. d4 {[%clk 0:03:01.9]} 1... Nf6 {[%clk 0:02:58.5]} 2. c4 {[%clk 0:03:03.5]}
2... g6 {[%clk 0:02:59.3]} 3. Nc3 {[%clk 0:03:04.1]} 3... Bg7 {[%clk 0:03:00.1]}
4. g3 {[%clk 0:03:04.4]} 4... d6 {[%clk 0:03:00.8]} 5. Bg2 {[%clk 0:03:05.5]}
5... O-O {[%clk 0:03:01.5]} 6. Nf3 {[%clk 0:03:06.9]} 6... Nbd7 {[%clk
0:03:02.4]} 7. O-O {[%clk 0:03:08.2]} 7... e5 {[%clk 0:03:03.1]} 8. h3 {[%clk
0:03:09.2]} 8... c6 {[%clk 0:03:00.1]} 9. e4 {[%clk 0:03:09.8]} 9... Qb6 {[%clk
0:02:57]} 10. c5 {[%clk 0:03:10.9]} 10... dxc5 {[%clk 0:02:57]} 11. dxe5 {[%clk
0:03:12.6]} 11... Ne8 {[%clk 0:02:57.7]} 12. e6 {[%clk 0:03:14.3]} 12... fxe6
{[%clk 0:02:57.9]} 13. Ng5 {[%clk 0:03:15]} 13... Nc7 {[%clk 0:02:51.3]} 14. f4
{[%clk 0:03:11.3]} 14... c4+ {[%clk 0:02:25.8]} 15. Kh2 {[%clk 0:03:11.3]} 15...
Nc5 {[%clk 0:02:26.3]} 16. e5 {[%clk 0:03:08]} 16... Nd3 {[%clk 0:02:21.8]} 17.
Nce4 {[%clk 0:03:03.8]} 17... Ne8 {[%clk 0:02:16.1]} 18. Qc2 {[%clk 0:02:59.9]}
18... Qa6 {[%clk 0:02:01.5]} 19. Rd1 {[%clk 0:02:47.8]} 19... b5 {[%clk
0:01:55.3]} 20. Be3 {[%clk 0:02:45]} 20... Nb4 {[%clk 0:01:49.4]} 21. Qd2 {[%clk
0:02:39.4]} 21... Nd5 {[%clk 0:01:49.8]} 22. Bc5 {[%clk 0:02:40.3]} 22... Bd7
{[%clk 0:01:43.2]} 23. Bxf8 {[%clk 0:02:40]} 23... Bxf8 {[%clk 0:01:42.9]} 24.
h4 {[%clk 0:02:03.6]} 24... Qb6 {[%clk 0:01:41.5]} 25. h5 {[%clk 0:01:48.1]}
25... Be7 {[%clk 0:01:38.5]} 26. hxg6 {[%clk 0:01:48.6]} 26... hxg6 {[%clk
0:01:38.6]} 27. Bh3 {[%clk 0:01:42.4]} 27... Nec7 {[%clk 0:01:37.5]} 28. Nf6+
{[%clk 0:01:36.3]} 28... Bxf6 {[%clk 0:01:35.9]} 29. exf6 {[%clk 0:01:37.7]}
29... Nxf6 {[%clk 0:01:37]} 30. Qc2 {[%clk 0:01:14.5]} 30... Kg7 {[%clk
0:01:34.9]} 31. Rd6 {[%clk 0:01:08.9]} 31... Re8 {[%clk 0:01:28.4]} 32. Rad1
{[%clk 0:01:08.1]} 32... Ncd5 {[%clk 0:01:02.8]} 33. R1xd5 {[%clk 0:00:58.9]}
33... exd5 {[%clk 0:00:49.7]} 34. Bxd7 {[%clk 0:00:58.9]} 34... Rh8+ {[%clk
0:00:42.8]} 35. Kg2 {[%clk 0:00:58.1]} 35... Qe3 {[%clk 0:00:28.5]} 36. Bxc6
{[%clk 0:00:33.6]} 36... d4 {[%clk 0:00:21.6]} 37. Ne6+ {[%clk 0:00:32]} 37...
Kf7 {[%clk 0:00:20.9]} 38. Nxd4 {[%clk 0:00:32.2]} 38... Ng4 {[%clk 0:00:20.9]}
39. Qxg6+ {[%clk 0:00:31.8]} 39... Ke7 {[%clk 0:00:22.1]} 40. Rd7+ {[%clk
0:00:31.3]} 1-0

[Event "*** Titled Tuesday Blitz"]
[Site "Chess.com"]
[Date "2019.02.05"]
[Round "4"]
[White "ezkybel"]
[Black "Mistheoretical"]
[Result "0-1"]
[WhiteElo "2261"]
[BlackElo "2334"]
[TimeControl "180+2"]
[EndTime "13:50:02 PST"]
[Termination "Mistheoretical won by resignation"]

1. e4 {[%clk 0:03:01.9]} 1... e6 {[%clk 0:03:00.9]} 2. d4 {[%clk 0:03:02.3]}
2... d5 {[%clk 0:03:02.8]} 3. c4 {[%clk 0:03:03.3]} 3... dxe4 {[%clk 0:03:01.8]}
4. Nc3 {[%clk 0:03:04.5]} 4... Nf6 {[%clk 0:03:00.7]} 5. f3 {[%clk 0:03:05.2]}
5... exf3 {[%clk 0:02:56.7]} 6. Nxf3 {[%clk 0:03:06.1]} 6... Nbd7 {[%clk
0:02:39]} 7. Bd3 {[%clk 0:03:06]} 7... Be7 {[%clk 0:02:38.3]} 8. O-O {[%clk
0:03:06.7]} 8... a6 {[%clk 0:02:39.6]} 9. Bg5 {[%clk 0:03:06.4]} 9... b6 {[%clk
0:02:38.9]} 10. Qe1 {[%clk 0:03:06.9]} 10... Bb7 {[%clk 0:02:38.8]} 11. Rd1
{[%clk 0:03:07.7]} 11... c6 {[%clk 0:02:33.8]} 12. Ne5 {[%clk 0:03:00.4]} 12...
Nxe5 {[%clk 0:02:05.4]} 13. dxe5 {[%clk 0:02:58.3]} 13... Nd7 {[%clk 0:02:05.6]}
14. Ne4 {[%clk 0:02:33.5]} 14... Nxe5 {[%clk 0:01:04.1]} 15. Bxe7 {[%clk
0:01:22]} 15... Qxe7 {[%clk 0:01:05.7]} 16. Qg3 {[%clk 0:01:22.9]} 16... f6
{[%clk 0:00:58.7]} 17. Nd6+ {[%clk 0:01:17.6]} 17... Kd7 {[%clk 0:00:22]} 18.
Nxb7 {[%clk 0:01:12.8]} 18... Kc7 {[%clk 0:00:23.5]} 19. c5 {[%clk 0:00:44.3]}
19... Kxb7 {[%clk 0:00:20.6]} 20. cxb6 {[%clk 0:00:45.2]} 20... Kxb6 {[%clk
0:00:11.1]} 21. Kh1 {[%clk 0:00:40.8]} 21... Kb7 {[%clk 0:00:05.8]} 22. Be4
{[%clk 0:00:41.3]} 22... Rad8 {[%clk 0:00:06]} 23. Qb3+ {[%clk 0:00:40.9]} 23...
Ka7 {[%clk 0:00:07.6]} 24. Qe3+ {[%clk 0:00:38.6]} 24... Kb7 {[%clk 0:00:07.7]}
25. a4 {[%clk 0:00:37.9]} 25... Rxd1 {[%clk 0:00:06.4]} 26. Rxd1 {[%clk
0:00:38.2]} 26... Rd8 {[%clk 0:00:08]} 27. Re1 {[%clk 0:00:34.8]} 27... Qd6
{[%clk 0:00:06.7]} 28. a5 {[%clk 0:00:34.1]} 28... Qc7 {[%clk 0:00:05.2]} 29.
Qb3+ {[%clk 0:00:33.2]} 29... Ka7 {[%clk 0:00:06.4]} 30. Qe3+ {[%clk 0:00:33.8]}
30... Kb7 {[%clk 0:00:06.7]} 31. Qc5 {[%clk 0:00:34.3]} 31... Rd7 {[%clk
0:00:04.5]} 32. h3 {[%clk 0:00:35.5]} 32... Kb8 {[%clk 0:00:04.8]} 33. Re3
{[%clk 0:00:36.3]} 33... Rd1+ {[%clk 0:00:04.1]} 34. Re1 {[%clk 0:00:15.2]}
34... Rxe1+ {[%clk 0:00:05.1]} 35. Qg1 {[%clk 0:00:16]} 35... Rxg1+ {[%clk
0:00:06.3]} 36. Kxg1 {[%clk 0:00:17.3]} 36... Qxa5 {[%clk 0:00:08.1]} 37. b3
{[%clk 0:00:18]} 37... Qe1+ {[%clk 0:00:08.8]} 38. Kh2 {[%clk 0:00:19.5]} 38...
Qxe4 {[%clk 0:00:10.4]} 39. b4 {[%clk 0:00:21]} 39... Qxb4 {[%clk 0:00:11.6]}
0-1